bitfinex/quotes_BTCUSD_20241110
["timestamp","ask_amount","ask_price","bid_price","bid_amount"]
[1731249789788,0.00168,79424.0,79423.0,0.25606502]
[1731249790976,0.13214784,79426.0,79425.0,0.125904]
[1731249791481,0.13214784,79426.0,79425.0,0.13046102]
[1731249792953,0.00168,79440.0,79425.0,0.00455702]
[1731249793157,0.00168,79440.0,79436.0,0.251774]
[1731249793362,0.00168,79440.0,79439.0,0.125882]
[1731249794154,0.00168,79440.0,79439.0,0.13043902]
[1731249795177,0.00168,79440.0,79439.0,0.00455702]
[1731249795413,0.127561,79440.0,79439.0,0.00455702]
[1731249796205,0.00168,79440.0,79439.0,0.00455702]
[1731249797173,0.00168,79440.0,79439.0,0.13043902]
[1731249800241,0.00168,79440.0,79439.0,0.41249863]
[1731249800471,0.00168,79450.0,79439.0,0.41249863]
[1731249800472,0.00168,79450.0,79449.0,0.15842302]
[1731249800600,0.00168,79450.0,79449.0,0.28436523]
[1731249800801,0.099,79454.0,79453.0,0.16041702]
[1731249800987,0.000713,79471.0,79469.0,0.125835]
[1731249802737,0.000713,79471.0,79469.0,0.13039202]
[1731249805544,0.00356839,79470.0,79469.0,0.13039202]
[1731249806164,0.00356839,79470.0,79469.0,0.39243423]
[1731249806357,0.00356839,79470.0,79469.0,0.41543423]
[1731249806958,0.00356839,79470.0,79469.0,0.46693599]
[1731249808742,0.00168,79470.0,79469.0,0.46693599]
[1731249811101,0.000713,79480.0,79479.0,0.13037602]
[1731249812375,0.18777345,79499.0,79479.0,0.00455702]
[1731249812376,0.16716645,79499.0,79479.0,0.00455702]
[1731249812666,0.16716645,79499.0,79484.0,0.251622]
[1731249812880,0.00044298,79501.0,79483.0,0.00455702]
[1731249813119,0.00044298,79501.0,79476.0,0.005]
[1731249813120,0.125805,79488.0,79482.0,0.00455702]
[1731249813311,0.0498,79498.0,79482.0,0.00455702]
[1731249813510,0.0854,79496.0,79480.0,0.18777345]
[1731249813651,0.0854,79496.0,79479.0,0.00455702]
[1731249813652,0.125816,79481.0,79479.0,0.00455702]
[1731249813855,0.005,79494.0,79479.0,0.00455702]
[1731249814059,0.125808,79486.0,79479.0,0.00455702]
[1731249814393,0.005,79493.0,79470.0,0.31816247]
[1731249814557,0.125814,79483.0,79479.0,0.18777345]
[1731249814757,0.12594221,79483.0,79473.0,0.00455702]
[1731249814997,0.12594221,79483.0,79473.0,0.125828]
[1731249815291,0.125816,79481.0,79472.0,0.25166]
[1731249815485,0.125821,79478.0,79470.0,0.31360645]
[1731249815689,0.25175521,79483.0,79477.0,0.00455702]
[1731249816318,0.3025011,79495.0,79478.0,0.18777345]
[1731249816500,0.1258,79491.0,79484.0,0.12581]
[1731249816669,0.125801,79491.0,79484.0,0.12581]
[1731249817216,0.125801,79491.0,79482.0,0.251629]
[1731249817354,0.12594221,79494.0,79483.0,0.125812]
[1731249817701,0.125802,79490.0,79482.0,0.251629]
[1731249817905,4e-05,79486.0,79484.0,0.12581]
[1731249818105,0.125802,79490.0,79484.0,0.12581]
[1731249818260,0.12594221,79494.0,79481.0,0.18777345]
[1731249818466,0.12594221,79494.0,79489.0,0.125802]
[1731249818675,0.125803,79489.0,79483.0,0.125811]
[1731249818880,0.251594,79493.0,79483.0,0.125811]
[1731249819059,0.125803,79490.0,79482.0,0.125814]
[1731249819425,0.12594221,79492.0,79483.0,0.125812]
[1731249819554,0.125803,79490.0,79483.0,0.125812]
[1731249819755,0.125803,79490.0,79484.0,0.125811]
[1731249819957,0.12594221,79492.0,79484.0,0.125811]
[1731249820165,0.12594221,79492.0,79474.0,0.00455702]
[1731249820393,0.125818,79480.0,79478.0,0.18777345]
[1731249820590,0.125821,79478.0,79471.0,0.000839]
[1731249820810,0.12638519,79492.0,79471.0,0.000839]
[1731249821182,0.251603,79490.0,79473.0,0.00455702]
[1731249821354,0.228625,79484.0,79474.0,0.125826]
[1731249821578,0.12594221,79483.0,79471.0,0.000839]
[1731249821784,0.125828,79474.0,79471.0,0.000839]
[1731249821989,0.251649,79476.0,79471.0,0.000839]
[1731249822182,0.12583,79472.0,79471.0,0.000839]
[1731249822353,0.25177221,79472.0,79471.0,0.000839]
[1731249824323,0.12583,79472.0,79471.0,0.000839]
[1731249824696,0.25177221,79472.0,79471.0,0.000839]
[1731249824899,0.12594221,79472.0,79471.0,0.000839]
[1731249825106,0.47841519,79472.0,79471.0,0.000839]
[1731249825305,0.48041519,79472.0,79471.0,0.000839]
[1731249826113,0.53036391,79472.0,79471.0,0.000839]
[1731249826601,0.53236391,79472.0,79471.0,0.000839]
[1731249826960,0.55536391,79472.0,79471.0,0.000839]
[1731249827177,0.22629198,79460.0,79459.0,0.18777345]
[1731249827376,0.35223419,79460.0,79459.0,0.18777345]
[1731249827956,0.35223419,79460.0,79450.0,0.18777345]
[1731249827957,0.125863,79451.0,79450.0,0.18777345]
[1731249828104,0.25180521,79451.0,79450.0,0.18277345]
[1731249828480,0.12594221,79451.0,79440.0,0.19277345]
[1731249828676,0.125875,79444.0,79440.0,0.19277345]
[1731249828942,0.125872,79446.0,79440.0,0.19277345]
[1731249829144,0.42997639,79451.0,79438.0,0.005]
[1731249829145,0.17824839,79451.0,79438.0,0.005]
[1731249829351,0.125878,79442.0,79438.0,0.005]
[1731249829493,0.251733,79449.0,79441.0,0.125878]
[1731249829701,0.12594221,79448.0,79441.0,0.125878]
[1731249829901,0.12594221,79448.0,79440.0,0.251762]
[1731249830140,0.12587,79447.0,79440.0,0.125879]
[1731249830347,0.25181321,79447.0,79442.0,0.125877]
[1731249830547,0.12594221,79447.0,79440.0,0.12588]
[1731249830751,0.125872,79446.0,79441.0,0.125879]
[1731249830942,0.125875,79444.0,79439.0,0.125881]
[1731249831159,0.12594221,79447.0,79440.0,0.12588]
[1731249831364,0.125873,79445.0,79440.0,0.12588]
[1731249831543,0.12594221,79447.0,79438.0,0.005]
[1731249831763,0.125875,79444.0,79438.0,0.005]
[1731249832118,0.125877,79443.0,79438.0,0.005]
[1731249832451,0.12594221,79447.0,79438.0,0.005]
[1731249832657,0.125873,79446.0,79440.0,0.12588]
[1731249832863,0.125877,79443.0,79438.0,0.005]
[1731249833084,0.251746,79445.0,79438.0,0.005]
[1731249833251,0.125877,79443.0,79437.0,0.125885]
[1731249833449,0.251743,79446.0,79432.0,0.005]
[1731249833646,0.12594221,79447.0,79432.0,0.005]
[1731249833869,0.125889,79435.0,79431.0,0.005]
[1731249834203,0.251746,79445.0,79430.0,0.18777345]
[1731249834404,0.12594221,79444.0,79430.0,0.18777345]
[1731249834602,0.251759,79441.0,79431.0,0.125894]
[1731249834804,0.251746,79445.0,79428.0,0.18777345]
[1731249834805,0.12594221,79440.0,79428.0,0.18777345]
[1731249835006,0.12594221,79440.0,79434.0,0.00455702]
[1731249835204,0.12594221,79440.0,79434.0,0.13044702]
[1731249835205,0.125882,79439.0,79434.0,0.13044702]
[1731249835410,0.12594221,79439.0,79435.0,0.00455702]
[1731249835785,0.12594221,79439.0,79430.0,0.005]
[1731249835786,0.12589,79435.0,79430.0,0.005]
[1731249835983,0.251768,79438.0,79422.0,0.005]
[1731249835984,0.12594221,79438.0,79422.0,0.005]
[1731249836183,0.251806,79427.0,79421.0,0.00084]
[1731249836439,0.125909,79422.0,79421.0,0.00084]
[1731249836652,0.125923,79413.0,79412.0,0.18734323]
[1731249836976,0.251844,79415.0,79404.0,0.005]
[1731249837217,0.08264298,79421.0,79403.0,0.00455702]
[1731249837218,0.1,79420.0,79407.0,0.005]
[1731249837387,0.12594221,79419.0,79407.0,0.005]
[1731249837600,0.12594221,79419.0,79401.0,0.19277345]
[1731249837818,0.125941,79402.0,79401.0,0.18777345]
[1731249838029,0.125942,79401.0,79400.0,0.00084]
[1731249838215,0.25188421,79401.0,79400.0,0.00084]
[1731249838591,0.25188421,79401.0,79400.0,0.00035942]
[1731249839008,0.12594221,79401.0,79391.0,0.0030297]
[1731249839231,0.37783421,79400.0,79394.0,0.18777345]
[1731249839503,0.37783421,79400.0,79389.0,0.125961]
[1731249839643,0.37783421,79400.0,79388.0,0.0030297]
[1731249839644,0.12594221,79400.0,79388.0,0.0030297]
[1731249839851,0.125953,79395.0,79389.0,0.0030297]
[1731249840060,0.12595,79396.0,79391.0,0.0030297]
[1731249840235,0.125956,79393.0,79388.0,0.0030297]
[1731249840441,0.251895,79398.0,79391.0,0.0030297]
[1731249840642,0.125951,79396.0,79391.0,0.0030297]
[1731249841054,0.125936,79405.0,79393.0,0.0030297]
[1731249841254,0.125938,79404.0,79395.0,0.251905]
[1731249841453,0.28821643,79407.0,79393.0,0.0030297]
[1731249841691,0.28821643,79407.0,79389.0,0.00455702]
[1731249841692,0.12594221,79406.0,79391.0,0.125957]
[1731249841884,0.125955,79393.0,79392.0,0.0030297]
[1731249842161,0.12596,79390.0,79389.0,0.00758672]
[1731249842360,0.12594221,79406.0,79389.0,0.00758672]
[1731249842361,0.15341009,79392.0,79391.0,0.0030297]
[1731249842987,0.15341009,79392.0,79391.0,0.1289877]
[1731249844979,0.15341009,79400.0,79399.0,0.1289757]
[1731249845398,5e-05,79401.0,79400.0,0.13353072]
[1731249845809,0.15346009,79401.0,79400.0,0.13353072]
[1731249846217,0.15346009,79401.0,79400.0,0.00758672]
[1731249846418,0.15346009,79401.0,79400.0,0.13353072]
[1731249846668,0.15346009,79401.0,79400.0,0.0030297]
[1731249846997,0.15346009,79401.0,79400.0,0.13353072]
[1731249851266,0.125945,79400.0,79395.0,0.125952]
[1731249851497,0.15346009,79401.0,79391.0,0.2549447]
[1731249851701,0.15341009,79392.0,79391.0,0.125958]
[1731249851895,0.15341009,79392.0,79382.0,0.336469]
[1731249851896,0.30682018,79392.0,79388.0,0.0030297]
[1731249852061,0.30682018,79392.0,79386.0,0.18777345]
[1731249852268,0.125968,79385.0,79384.0,0.00455702]
[1731249852505,0.25192,79390.0,79384.0,0.00455702]
[1731249852682,0.25192,79390.0,79388.0,0.0030297]
[1731249852683,0.125962,79389.0,79388.0,0.0030297]
[1731249852883,0.12594221,79390.0,79383.0,0.12597]
[1731249853108,0.15341009,79384.0,79383.0,0.00455702]
[1731249853311,0.15341009,79384.0,79383.0,0.13052802]
[1731249853734,0.15341009,79384.0,79383.0,0.13355772]
[1731249853955,0.15341009,79384.0,79383.0,0.00455702]
[1731249854317,0.15341009,79384.0,79382.0,0.001424]
[1731249854519,0.29075911,79383.0,79382.0,0.001424]
[1731249855277,0.0388459,79383.0,79379.0,0.125977]
[1731249855460,0.0388459,79382.0,79375.0,0.18777345]
[1731249855794,0.05049234,79388.0,79375.0,0.18777345]
[1731249855795,0.15341009,79377.0,79376.0,0.127405]
[1731249857386,0.15341009,79377.0,79376.0,0.001424]
[1731249857532,0.27939109,79377.0,79376.0,0.001424]
[1731249857918,0.44413953,79377.0,79376.0,0.001424]
[1731249860063,0.32315853,79377.0,79376.0,0.001424]
[1731249860289,0.47656862,79377.0,79376.0,0.001424]
[1731249860534,0.32315853,79377.0,79376.0,0.001424]
[1731249861097,0.03880623,79377.0,79376.0,0.210506]
[1731249861303,0.27939109,79377.0,79376.0,0.00901072]
[1731249861631,0.27939109,79377.0,79376.0,0.00598102]
[1731249861990,0.4053333,79377.0,79376.0,0.001424]
[1731249862408,0.44410485,79377.0,79376.0,0.001424]
[1731249863751,0.47214485,79377.0,79376.0,0.001424]
[1731249864983,0.46714485,79377.0,79376.0,0.001424]
[1731249865300,0.44414485,79377.0,79376.0,0.001424]
[1731249865495,0.76869973,79377.0,79376.0,0.001424]
[1731249865747,0.77069973,79377.0,79376.0,0.001424]
[1731249865945,0.78359394,79377.0,79376.0,0.001424]
[1731249866157,0.57455813,79377.0,79376.0,0.001424]
[1731249866567,0.61175946,79377.0,79376.0,0.001424]
[1731249866768,0.57455813,79377.0,79376.0,0.001424]
[1731249866942,0.61175272,79377.0,79376.0,0.001424]
[1731249867267,0.57455813,79377.0,79376.0,0.001424]
[1731249867479,0.86442484,79377.0,79376.0,0.001424]
[1731249867647,0.57455813,79377.0,79376.0,0.001424]
[1731249867998,0.6117478,79377.0,79376.0,0.001424]
[1731249868209,0.0929712,79385.0,79376.0,0.001424]
[1731249868210,0.04918648,79392.0,79378.0,0.251958]
[1731249868418,0.11156782,79411.0,79378.0,0.251958]
[1731249868419,0.75589123,79418.0,79417.0,0.015]
[1731249868546,0.15341009,79424.0,79420.0,0.005]
[1731249868745,0.15341009,79424.0,79407.0,0.005]
[1731249868951,0.15603694,79420.0,79406.0,0.125934]
[1731249869219,0.00188968,79421.0,79405.0,0.005]
[1731249869335,0.00188968,79421.0,79400.0,0.048]
[1731249869336,0.15341009,79404.0,79400.0,0.048]
[1731249869747,0.2793523,79401.0,79376.0,0.001424]
[1731249869939,0.15341009,79377.0,79376.0,0.003424]
[1731249870155,0.15341009,79377.0,79376.0,0.001424]
[1731249870156,0.2793523,79377.0,79376.0,0.001424]
[1731249870360,0.4053333,79377.0,79376.0,0.001424]
[1731249870486,0.5053333,79377.0,79376.0,0.001424]
[1731249870689,0.65874339,79377.0,79376.0,0.001424]
[1731249870916,0.55669825,79377.0,79376.0,0.001424]
[1731249872579,0.43071725,79377.0,79376.0,0.001424]
[1731249872872,0.55669825,79377.0,79376.0,0.001424]
[1731249878487,0.32832973,79377.0,79376.0,0.001424]
[1731249879012,0.22832973,79377.0,79376.0,0.001424]
[1731249879236,0.10238752,79377.0,79376.0,0.001424]
[1731249879463,0.10238752,79377.0,79376.0,0.127406]
[1731249880507,0.10238752,79377.0,79376.0,0.006424]
[1731249880712,0.10238752,79377.0,79376.0,0.008424]
[1731249880915,0.00168,79382.0,79381.0,0.007]
[1731249881132,0.127653,79382.0,79381.0,0.007]
[1731249882073,0.127653,79382.0,79381.0,0.005]
[1731249882217,0.125981,79377.0,79376.0,0.001424]
[1731249882405,0.40539305,79377.0,79376.0,0.001424]
[1731249883648,0.50539305,79377.0,79376.0,0.001424]
[1731249884457,0.125984,79375.0,79374.0,0.097848]
[1731249884661,0.25192621,79375.0,79374.0,0.097848]
[1731249887484,0.35192621,79375.0,79374.0,0.097848]
[1731249888489,0.50539605,79375.0,79374.0,0.097848]
[1731249888919,0.50539605,79375.0,79374.0,0.05725994]
[1731249889466,0.55633997,79375.0,79374.0,0.05725994]
[1731249889879,0.50539605,79375.0,79374.0,0.05725994]
[1731249890971,0.35192621,79375.0,79374.0,0.05725994]
[1731249891168,0.35192621,79375.0,79374.0,0.05809994]
[1731249892566,0.225984,79375.0,79374.0,0.05809994]
[1731249893009,0.125984,79375.0,79374.0,0.05809994]
[1731249893156,0.126024,79375.0,79374.0,0.05809994]
[1731249894358,0.125272,79375.0,79374.0,0.05809994]
[1731249895172,0.31424481,79375.0,79374.0,0.05809994]
[1731249895980,0.125272,79375.0,79374.0,0.06009994]
[1731249896513,0.125272,79375.0,79374.0,0.05809994]
[1731249896860,0.25121421,79375.0,79374.0,0.05809994]
[1731249897262,0.125272,79375.0,79374.0,0.05809994]
[1731249897508,0.125272,79375.0,79374.0,0.18908494]
[1731249897509,4e-05,79375.0,79374.0,0.18908494]
[1731249897713,4e-05,79375.0,79374.0,0.19908494]
[1731249897915,4e-05,79375.0,79374.0,0.24568494]
[1731249898466,4e-05,79375.0,79374.0,0.32808494]
[1731249900424,4e-05,79375.0,79374.0,0.20209994]
[1731249900778,0.10237901,79375.0,79374.0,0.20409994]
[1731249901325,0.10237901,79375.0,79374.0,0.33008494]
[1731249902340,0.45664423,79375.0,79374.0,0.05809994]
[1731249903961,0.45832423,79375.0,79374.0,0.05809994]
[1731249904156,0.25364621,79375.0,79374.0,0.05809994]
[1731249904392,0.55832423,79375.0,79374.0,0.05809994]
[1731249904939,0.66084025,79375.0,79374.0,0.05809994]
[1731249905153,0.50724323,79375.0,79374.0,0.05809994]
[1731249905738,0.66084025,79375.0,79374.0,0.05809994]
[1731249906022,0.50724323,79375.0,79374.0,0.05809994]
[1731249907096,0.66084025,79375.0,79374.0,0.05809994]
[1731249907756,0.50724323,79375.0,79374.0,0.05809994]
[1731249908486,0.71105621,79375.0,79374.0,0.05809994]
[1731249910088,0.98007284,79375.0,79374.0,0.05809994]
[1731249910418,0.85413063,79375.0,79374.0,0.05809994]
[1731249910585,0.89140216,79375.0,79374.0,0.05809994]
[1731249910734,0.85413063,79375.0,79374.0,0.05809994]
[1731249911230,0.1,79368.0,79362.0,0.001426]
[1731249911453,0.15359702,79363.0,79351.0,0.005]
[1731249911660,0.15359702,79363.0,79345.0,0.005]
[1731249911661,0.12603,79346.0,79345.0,0.005]
[1731249912458,0.252057,79347.0,79345.0,0.005]
[1731249913116,0.12603,79346.0,79345.0,0.005]
[1731249913566,0.18897281,79359.0,79345.0,0.005]
[1731249913696,0.12603,79346.0,79345.0,0.005]
[1731249914034,0.126027,79348.0,79345.0,0.005]
[1731249914195,0.18897281,79349.0,79345.0,0.005]
[1731249914558,0.12603,79346.0,79345.0,0.005]
[1731249914882,0.126031,79345.0,79344.0,0.005]
[1731249915087,0.252066,79344.0,79334.0,0.005]
[1731249915304,0.126038,79341.0,79334.0,0.005]
[1731249916133,0.126038,79341.0,79335.0,0.126047]
[1731249916340,0.15359702,79345.0,79334.0,0.005]
[1731249916570,0.126035,79343.0,79338.0,0.171742]
[1731249916771,0.15359702,79345.0,79338.0,0.0457]
[1731249916980,0.15359702,79345.0,79342.0,0.126036]
[1731249917216,0.15359702,79345.0,79340.0,0.209039]
[1731249917350,0.27962902,79345.0,79340.0,0.083]
[1731249917559,0.15359702,79345.0,79341.0,0.252076]
[1731249917766,0.15359702,79345.0,79340.0,0.209039]
[1731249918377,0.15359702,79345.0,79342.0,0.126035]
[1731249918586,0.15359702,79345.0,79340.0,0.083]
[1731249918787,0.27962902,79345.0,79340.0,0.083]
[1731249918996,0.27962902,79345.0,79340.0,0.209039]
[1731249919429,0.126034,79344.0,79340.0,0.083]
[1731249920151,0.15359702,79345.0,79340.0,0.209039]
[1731249920507,0.15359702,79345.0,79341.0,0.252076]
[1731249920730,0.15359702,79345.0,79343.0,0.126034]
[1731249920946,0.15359702,79345.0,79341.0,0.126036]
[1731249921175,0.15359702,79345.0,79340.0,0.083]
[1731249921176,0.126036,79343.0,79340.0,0.083]
[1731249921334,0.15359702,79345.0,79340.0,0.083]
[1731249921535,0.27963002,79345.0,79340.0,0.083]
[1731249921744,0.126033,79344.0,79340.0,0.209038]
[1731249921985,0.252068,79344.0,79340.0,0.083]
[1731249922227,0.126037,79342.0,79340.0,0.083]
[1731249922418,0.126038,79341.0,79338.0,0.0457]
[1731249922581,0.126035,79343.0,79338.0,0.171742]
[1731249923201,0.126035,79343.0,79338.0,0.0457]
[1731249923436,0.126035,79343.0,79338.0,0.171742]
[1731249923778,0.15359702,79345.0,79338.0,0.0457]
[1731249924004,0.252066,79344.0,79338.0,0.08734838]
[1731249924205,0.126038,79341.0,79338.0,0.08734838]
[1731249924404,0.12604,79340.0,79338.0,0.08734838]
[1731249924610,0.126047,79336.0,79330.0,0.126055]
[1731249924812,0.2049408,79331.0,79327.0,0.126059]
[1731249925016,0.2049408,79331.0,79326.0,0.005]
[1731249925250,0.2049408,79331.0,79323.0,0.126065]
[1731249925251,0.18897281,79330.0,79323.0,0.126065]
[1731249925437,0.126053,79332.0,79327.0,0.12606]
[1731249925742,0.126056,79330.0,79323.0,0.005]
[1731249926041,0.1024704,79326.0,79322.0,0.334236]
[1731249926261,0.1024704,79326.0,79325.0,0.131063]
[1731249926465,0.126066,79324.0,79322.0,0.0771]
[1731249926750,0.126066,79324.0,79319.0,0.16671749]
[1731249926751,0.2049408,79320.0,79319.0,0.16671749]
[1731249926951,0.2049408,79320.0,79311.0,0.005]
[1731249927113,0.1024704,79314.0,79307.0,0.04096369]
[1731249927316,0.126094,79306.0,79304.0,0.001424]
[1731249927543,0.2049408,79308.0,79304.0,0.001424]
[1731249927544,0.1024704,79308.0,79305.0,0.005]
[1731249927882,0.1024704,79308.0,79305.0,0.131094]
[1731249928064,0.1024704,79308.0,79305.0,0.005]
[1731249928266,0.18897281,79306.0,79304.0,0.006424]
[1731249928442,0.1024704,79308.0,79307.0,0.126092]
[1731249928812,0.1024704,79308.0,79304.0,0.006424]
[1731249929014,0.1024704,79308.0,79307.0,0.126092]
[1731249929477,0.32656785,79308.0,79294.0,0.25568429]
[1731249929680,0.32656785,79308.0,79251.0,0.79744244]
[1731249929681,0.005,79255.0,79240.0,0.252394]
[1731249929929,0.005,79255.0,79235.0,0.252411]
[1731249929930,0.2049408,79248.0,79235.0,0.252411]
[1731249930134,0.2049408,79248.0,79241.0,0.252394]
[1731249930367,0.2049408,79248.0,79247.0,0.04292578]
[1731249930537,0.2049408,79248.0,79247.0,0.001426]
[1731249930691,0.2049408,79248.0,79237.0,0.04129516]
[1731249931057,0.2049408,79248.0,79218.0,0.252464]
[1731249931058,0.1024704,79238.0,79218.0,0.252464]
[1731249931280,0.1024704,79225.0,79224.0,0.1388281]
[1731249931392,0.2049408,79225.0,79224.0,0.0126041]
[1731249931796,0.2049408,79225.0,79224.0,0.1388281]
[1731249932018,0.1024704,79225.0,79224.0,0.18410436]
[1731249932436,0.1024704,79225.0,79224.0,0.1388281]
[1731249932863,0.15404051,79225.0,79224.0,0.51721731]
[1731249933123,0.15404051,79233.0,79232.0,0.126211]
[1731249933374,0.75656319,79238.0,79237.0,0.126203]
[1731249933537,0.15404051,79241.0,79227.0,0.005]
[1731249933538,0.15404051,79241.0,79240.0,0.126198]
[1731249934214,0.15404051,79241.0,79231.0,0.126211]
[1731249934513,0.75656319,79246.0,79223.0,0.252451]
[1731249934514,0.15404051,79232.0,79223.0,0.252451]
[1731249934654,0.15404051,79232.0,79225.0,0.12594221]
[1731249934862,0.15404051,79232.0,79231.0,0.126213]
[1731249935066,0.15404051,79241.0,79225.0,0.12594221]
[1731249935266,0.18932701,79237.0,79228.0,0.002]
[1731249935479,0.18932701,79237.0,79236.0,0.126205]
[1731249935809,0.15404051,79241.0,79240.0,0.126198]
[1731249936051,0.18932701,79245.0,79244.0,0.126192]
[1731249936297,0.18932701,79245.0,79203.0,0.0771]
[1731249936298,0.18932701,79217.0,79203.0,0.0771]
[1731249936418,0.18932701,79217.0,79179.0,8e-05]
[1731249936419,0.15404051,79204.0,79180.0,0.002]
[1731249936616,0.15404051,79200.0,79180.0,0.002]
[1731249936813,0.15404051,79213.0,79212.0,0.126243]
[1731249937219,0.15404051,79222.0,79184.0,0.330676]
[1731249937422,0.15404051,79222.0,79201.0,0.12594221]
[1731249937423,0.15404051,79212.0,79201.0,0.12594221]
[1731249937621,0.15404051,79212.0,79211.0,0.116245]
[1731249937847,0.15404051,79212.0,79211.0,0.111245]
[1731249938423,0.15404051,79212.0,79211.0,0.211245]
[1731249939075,0.15404051,79212.0,79211.0,0.33718721]
[1731249939281,0.75728413,79230.0,79211.0,0.33718721]
[1731249939282,0.15404051,79222.0,79221.0,0.126229]
[1731249941883,0.15404051,79230.0,79214.0,0.1]
[1731249942051,0.15404051,79230.0,79227.0,0.126218]
[1731249942389,0.15404051,79230.0,79224.0,0.252445]
[1731249942390,0.15404051,79230.0,79228.0,0.126217]
[1731249942619,0.15404051,79230.0,79229.0,0.126216]
[1731249942955,0.15398933,79242.0,79229.0,0.12594221]
[1731249943157,0.18934254,79241.0,79230.0,0.12662809]
[1731249943460,0.18934254,79233.0,79231.0,0.00244937]
[1731249943693,0.15398933,79234.0,79213.0,0.0761]
[1731249943694,0.15398933,79234.0,79233.0,0.12621]
[1731249943951,0.15398933,79234.0,79218.0,0.44180754]
[1731249944094,0.15398933,79234.0,79233.0,0.12621]
[1731249944301,0.15398933,79234.0,79230.0,0.126214]
[1731249944555,0.15398933,79234.0,79231.0,0.126212]
[1731249945326,0.15398933,79234.0,79233.0,0.12621]
[1731249945678,0.15398933,79234.0,79228.0,0.252433]
[1731249945679,0.28019833,79234.0,79228.0,0.126216]
[1731249945831,0.28019833,79234.0,79206.0,0.04368664]
[1731249945832,0.005,79229.0,79212.0,0.18934254]
[1731249946032,0.005,79239.0,79228.0,0.18934254]
[1731249946242,0.18934254,79230.0,79216.0,0.023]
[1731249946468,0.15398933,79236.0,79214.0,0.023]
[1731249946469,0.15398933,79236.0,79220.0,0.18934254]
[1731249946758,0.18934254,79234.0,79233.0,0.12621]
[1731249947160,0.15398933,79236.0,79235.0,0.126206]
[1731249947948,0.01,79245.0,79235.0,0.126206]
[1731249947949,0.15398933,79245.0,79244.0,0.126192]
[1731249948147,0.18934254,79252.0,79246.0,0.126189]
[1731249948370,0.18934254,79251.0,79246.0,0.126189]
[1731249949101,0.15898933,79253.0,79246.0,0.126189]
[1731249949463,0.18934254,79252.0,79242.0,0.126194]
[1731249949666,0.15398933,79245.0,79235.0,0.04144489]
[1731249949862,0.15398933,79245.0,79244.0,0.126192]
[1731249951444,0.15398933,79253.0,79246.0,0.126189]
[1731249952260,0.15398933,79253.0,79246.0,0.504759]
[1731249952439,0.15398933,79253.0,79246.0,0.37857]
[1731249952963,0.15398933,79253.0,79252.0,0.126179]
[1731249953189,0.15398933,79253.0,79249.0,0.126183]
[1731249953343,0.15398933,79253.0,79252.0,0.126179]
[1731249954439,0.15398933,79253.0,79246.0,0.37857]
[1731249954638,0.15398933,79253.0,79252.0,0.126179]
[1731249955487,0.15398933,79261.0,79260.0,0.126167]
[1731249955753,0.34833187,79269.0,79268.0,0.126154]
[1731249955885,0.34333187,79269.0,79268.0,0.126154]
[1731249956068,0.15398933,79269.0,79268.0,0.126154]
[1731249957307,0.15398933,79277.0,79276.0,0.126141]
[1731249958167,0.15398933,79277.0,79270.0,0.252301]
[1731249958407,0.15398933,79277.0,79266.0,0.252312]
[1731249958408,0.15398933,79277.0,79271.0,0.37845]
[1731249958559,0.262268,79281.0,79271.0,0.37845]
[1731249958560,0.15398933,79272.0,79271.0,0.37845]
[1731249958906,0.15398933,79272.0,79271.0,0.504599]
[1731249959277,0.005,79287.0,79271.0,0.504599]
[1731249959278,0.15398933,79279.0,79272.0,0.252295]
[1731249959479,0.18934254,79278.0,79277.0,0.126139]
[1731249959888,0.15398933,79279.0,79277.0,0.126139]
[1731249959889,0.15398933,79279.0,79277.0,0.126138]
[1731249960080,0.15398933,79279.0,79267.0,0.252309]
[1731249960081,0.15398933,79279.0,79278.0,0.126138]
[1731249962782,0.15398933,79279.0,79271.0,0.630746]
[1731249962783,0.15398933,79279.0,79275.0,0.126142]
[1731249962989,0.15398933,79279.0,79276.0,0.12614]
[1731249963188,0.15398933,79279.0,79271.0,0.37845]
[1731249963189,0.12614,79277.0,79271.0,0.504598]
[1731249963416,0.15398933,79279.0,79271.0,0.37845]
[1731249964205,0.005,79276.0,79271.0,0.504598]
[1731249964405,0.15898933,79279.0,79273.0,0.252292]
[1731249964624,0.15898933,79279.0,79278.0,0.126138]
[1731249964937,0.16067133,79279.0,79272.0,0.252295]
[1731249965769,0.16067133,79279.0,79271.0,0.37845]
[1731249966058,0.005,79272.0,79271.0,0.37845]
[1731249966221,0.131147,79272.0,79271.0,0.37845]
[1731249966501,0.29514033,79270.0,79269.0,0.000841]
[1731249966916,0.29514033,79270.0,79245.0,0.252379]
[1731249966917,0.01,79258.0,79251.0,0.18934254]
[1731249967061,0.0828,79273.0,79255.0,0.252349]
[1731249967062,0.15398933,79273.0,79255.0,0.252349]
[1731249967265,0.15398933,79265.0,79251.0,0.18934254]
[1731249967488,0.15398933,79265.0,79264.0,0.12616]
[1731249968287,0.15398933,79273.0,79272.0,0.126147]
[1731249968484,0.15398933,79273.0,79259.0,0.252337]
[1731249968485,0.006682,79279.0,79259.0,0.252337]
[1731249968698,0.006682,79279.0,79278.0,0.126138]
[1731249968890,0.005,79278.0,79254.0,0.0488]
[1731249969092,0.005,79278.0,79274.0,0.126144]
[1731249969318,0.15398933,79271.0,79270.0,0.126151]
[1731249970210,0.15268933,79271.0,79270.0,0.126151]
[1731249970941,0.15268933,79271.0,79267.0,0.126154]
[1731249971086,0.15268933,79271.0,79252.0,0.252359]
[1731249971297,0.15268933,79271.0,79270.0,0.126151]
[1731249971530,0.15268933,79271.0,79253.0,0.12594221]
[1731249971789,0.005,79273.0,79253.0,0.12594221]
[1731249971790,0.15398933,79263.0,79262.0,0.126163]
[1731249972472,0.15398933,79263.0,79255.0,0.25235]
[1731249972596,0.15398933,79263.0,79253.0,0.12594221]
[1731249972795,0.005,79261.0,79246.0,0.18934254]
[1731249973003,0.15398933,79254.0,79253.0,0.126178]
[1731249973199,0.15398933,79254.0,79251.0,0.252359]
[1731249973409,0.15398933,79254.0,79253.0,0.126178]
[1731249974087,0.15398933,79254.0,79245.0,0.252378]
[1731249974297,0.15398933,79246.0,79241.0,0.126196]
[1731249974506,0.126191,79245.0,79234.0,0.252414]